fUSD/lending_fUSD_20260225
["ID","MTS","AMOUNT","RATE_DAILY","PERIOD"]
[406644719,1772025046164,-432.0,0.0001,2]
[406644720,1772025046174,-500.0,0.0001,2]
[406644721,1772025046184,-548.7724774,0.0001,2]
[406644722,1772025046194,-151.0,0.0001,2]
[406644723,1772025046204,-151.0,0.0001,2]
[406644724,1772025046214,-151.0,0.0001,2]
[406644725,1772025046224,-2000.0,0.0001,2]
[406644726,1772025046233,-2000.0,0.0001,2]
[406644727,1772025046242,-475.61946729,0.0001,2]
[406644728,1772025046253,-151.0,0.0001,2]
[406644729,1772025046264,-2000.0,0.0001,2]
[406644730,1772025046274,-2000.0,0.0001,2]
[406644731,1772025046284,-2000.0,0.0001,2]
[406644732,1772025046294,-151.0,0.0001,2]
[406644733,1772025046304,-151.0,0.0001,2]
[406644734,1772025046314,-151.0,0.0001,2]
[406644735,1772025046325,-151.0,0.0001,2]
[406644736,1772025046334,-151.0,0.0001,2]
[406644737,1772025046343,-151.0,0.0001,2]
[406644738,1772025046353,-151.0,0.0001,2]
[406644739,1772025046363,-2000.0,0.0001,2]
[406644740,1772025046372,-151.0,0.0001,2]
[406644741,1772025046382,-151.0,0.0001,2]
[406644742,1772025046391,-151.0,0.0001,2]
[406644743,1772025046401,-151.0,0.0001,2]
[406644744,1772025046410,-200.0,0.0001,2]
[406644745,1772025046419,-1122.80181009,0.0001,2]
[406644746,1772025046428,-151.0,0.0001,2]
[406644747,1772025046437,-151.0,0.0001,2]
[406644748,1772025046446,-151.0,0.0001,2]
[406644749,1772025046455,-151.0,0.0001,2]
[406644750,1772025046464,-303.0,0.0001,2]
[406644751,1772025046473,-924.91678041,0.0001,2]
[406644752,1772025046483,-180.308126,0.0001,2]
[406644753,1772025046492,-180.308126,0.0001,2]
[406644754,1772025046501,-180.308126,0.0001,2]
[406644755,1772025046511,-180.308126,0.0001,2]
[406644756,1772025046520,-275.0,0.0001,2]
[406644757,1772025046530,-275.0,0.0001,2]
[406644758,1772025046539,-275.69544857,0.0001,2]
[406644759,1772025046549,-1353.849617,0.0001,2]
[406644760,1772025046558,-1353.849617,0.0001,2]
[406644761,1772025046567,-1353.849617,0.0001,2]
[406644762,1772025046577,-1353.849617,0.0001,2]
[406644763,1772025046586,-153.0,0.0001,2]
[406644764,1772025046596,-432.0,0.0001,2]
[406644765,1772025046605,-200.0,0.0001,2]
[406644766,1772025046615,-168.98,0.00010029,2]
[406644767,1772025046624,-164.94,0.00010039,2]
[406644768,1772025046634,-166.27,0.00010042,2]
[406644769,1772025046644,-350.0,0.00010058,2]
[406644770,1772025046653,-200.0,0.000101,2]
[406644771,1772025046780,-200.0,0.000101,2]
[406644772,1772025046789,-350.0,0.00010115,2]
[406644773,1772025046799,-927.37579683,0.0001016,2]
[406644774,1772025046808,-2530.12390321,0.00010197,2]
[406644775,1772025046818,-5531.0,0.000102,3]
[406644776,1772025046827,-200.0,0.00010201,2]
[406644777,1772025046837,-200.0,0.00010201,2]
[406644778,1772025046846,-459.22025273,0.00010252,2]
[406644779,1772025046855,-5531.0,0.000103,5]
[406644780,1772025046864,-812.80444789,0.000103,2]
[406644781,1772025046874,-500.0,0.000103,2]
[406644782,1772025046884,-699.99,0.000103,2]
[406644783,1772025046894,-500.0,0.000103,2]
[406644784,1772025046903,-500.0,0.000103,2]
[406644785,1772025046912,-671.44542235,0.000103,2]
[406644786,1772025046922,-500.0,0.000103,2]
[406644787,1772025046931,-500.0,0.000103,2]
[406644788,1772025046940,-977.54963407,0.000103,2]
[406644789,1772025046949,-500.0,0.000103,2]
[406644790,1772025046958,-500.0,0.000103,2]
[406644791,1772025046968,-500.0,0.000103,2]
[406644792,1772025046977,-500.0,0.000103,2]
[406644793,1772025046987,-500.0,0.000103,2]
[406644794,1772025046996,-500.0,0.000103,2]
[406644795,1772025047006,-500.0,0.000103,2]
[406644796,1772025047015,-500.0,0.000103,2]
[406644797,1772025047026,-953.13710309,0.000103,2]
[406644798,1772025047036,-500.0,0.000103,2]
[406644799,1772025047045,-500.0,0.000103,2]
[406644800,1772025047055,-500.0,0.000103,2]
[406644801,1772025047064,-500.0,0.000103,2]
[406644802,1772025047074,-500.0,0.000103,2]
[406644803,1772025047083,-500.0,0.000103,2]
[406644804,1772025047092,-611.11529278,0.000103,2]
[406644805,1772025047102,-500.0,0.000103,2]
[406644806,1772025047111,-500.0,0.000103,2]
[406644807,1772025047121,-500.0,0.000103,2]
[406644808,1772025047130,-500.0,0.000103,2]
[406644809,1772025047139,-500.0,0.000103,2]
[406644810,1772025047149,-500.0,0.000103,2]
[406644811,1772025047158,-500.0,0.000103,2]
[406644812,1772025047168,-500.0,0.000103,2]
[406644813,1772025047177,-500.0,0.000103,2]
[406644814,1772025047187,-500.0,0.000103,2]
[406644815,1772025047196,-500.0,0.000103,2]
[406644816,1772025047205,-500.0,0.000103,2]
[406644817,1772025047215,-936.57274826,0.000103,2]
[406644818,1772025047224,-200.0,0.00010303,2]
[406644819,1772025047234,-200.0,0.00010303,2]
[406644820,1772025047243,-599.60298507,0.00010307,2]
[406644821,1772025047253,-332.60791905,0.00010308,2]
[406644822,1772025047264,-350.0,0.00010392,2]
[406644823,1772025047274,-200.0,0.00010406,2]
[406644824,1772025047283,-200.0,0.00010406,2]
[406644825,1772025047294,-1663.45839387,0.00010493,2]
[406644826,1772025047303,-350.0,0.00010496,2]
[406644827,1772025047312,-920.0,0.00010501,2]
[406644828,1772025047321,-1210.0,0.00010501,2]
[406644829,1772025047331,-2456.0,0.00010501,2]
[406644830,1772025047340,-413.0,0.00010501,2]
[406644831,1772025047349,-5405.0,0.00010501,2]
[406644832,1772025047359,-200.0,0.00010548,2]
[406644833,1772025047368,-155.0,0.00010667,2]
[406644834,1772025047377,-157.92,0.00010669,2]
[406644835,1772025047386,-350.0,0.0001068,2]
[406644836,1772025047396,-156.53,0.00010685,2]
[406644837,1772025047405,-350.0,0.0001077,2]
[406644838,1772025047415,-350.0,0.00010787,2]
[406644839,1772025047424,-350.0,0.00010839,2]
[406644840,1772025047433,-344.91441206,0.00010856,2]
[406644841,1772025047443,-200.0,0.00010959,2]
[406644842,1772025047452,-500.0,0.00010959,2]
[406644843,1772025047462,-250.63004869,0.00010959,2]
[406644844,1772025047471,-150.0,0.00010959,2]
[406644845,1772025047481,-166.66,0.00010959,2]
[406644846,1772025047490,-150.0,0.00010959,2]
[406644847,1772025047499,-12049.23,0.00010959,2]
[406644848,1772025047508,-151.0,0.00010959,2]
[406644849,1772025047519,-151.0,0.00010959,2]
[406644850,1772025047528,-151.0,0.00010959,2]
[406644851,1772025047537,-160.388887,0.00010959,2]
[406644852,1772025047547,-151.0,0.00010959,2]
[406644853,1772025047556,-151.0,0.00010959,2]
[406644854,1772025047565,-151.0,0.00010959,2]
[406644855,1772025047574,-151.0,0.00010959,2]
[406644856,1772025047584,-151.0,0.00010959,2]
[406644857,1772025047593,-151.0,0.00010959,2]
[406644858,1772025047602,-151.0,0.00010959,2]
[406644859,1772025047611,-151.0,0.00010959,2]
[406644860,1772025047620,-197.99861774,0.00010959,2]
[406644861,1772025047629,-2000.0,0.00011,2]
[406644862,1772025047639,-1000.0,0.00011061,2]
[406644863,1772025047649,-166.66,0.00011068,2]
[406644864,1772025047659,-200.0,0.00011096,2]
[406644865,1772025047668,-8847.49802275,0.00011099,2]
[406644866,1772025047677,-8847.4980227,0.00011099,2]
[406644867,1772025047687,-8847.4980227,0.00011099,2]
[406644868,1772025047696,-12023.9867231,0.00011099,2]
[406644869,1772025047705,-12023.98672303,0.00011099,2]
[406644870,1772025047715,-12023.98672303,0.00011099,2]
[406644871,1772025047724,-12023.98672303,0.00011099,2]
[406644872,1772025047733,-151.0,0.00011099,2]
[406644873,1772025047742,-151.0,0.00011099,2]
[406644874,1772025047752,-151.0,0.00011099,2]
[406644875,1772025047761,-151.0,0.00011099,2]
[406644876,1772025047771,-812.400674,0.00011099,2]
[406644877,1772025047781,-812.400674,0.00011099,2]
[406644878,1772025047790,-812.400674,0.00011099,2]
[406644879,1772025047801,-812.400674,0.00011099,2]
[406644880,1772025047810,-259.092629,0.00011099,2]
[406644881,1772025047819,-151.0,0.00011099,2]
[406644882,1772025047828,-151.0,0.00011099,2]
[406644883,1772025047837,-151.0,0.00011099,2]
[406644884,1772025047847,-151.0,0.00011099,2]
[406644885,1772025047856,-151.0,0.00011099,2]
[406644886,1772025047865,-151.0,0.00011099,2]
[406644887,1772025047874,-180.308126,0.00011099,2]
[406644888,1772025047883,-180.308126,0.00011099,2]
[406644889,1772025047892,-180.308126,0.00011099,2]
[406644890,1772025047901,-180.308126,0.00011099,2]
[406644891,1772025047910,-1353.849617,0.00011099,2]
[406644892,1772025047919,-1353.849617,0.00011099,2]
[406644893,1772025047928,-1353.849617,0.00011099,2]
[406644894,1772025047938,-1353.849617,0.00011099,2]
[406644895,1772025047947,-1937.10306937,0.00011122,2]
[406644896,1772025047956,-166.66,0.00011178,2]
[406644897,1772025047966,-4690.01,0.00011233,2]
[406644898,1772025047976,-150.0,0.00011233,2]
[406644899,1772025047987,-200.0,0.00011233,2]
[406644900,1772025047996,-2938.97954302,0.00011277,2]
[406644901,1772025048006,-166.66,0.00011288,2]
[406644902,1772025048016,-300.0,0.0001131,4]
[406644903,1772025048025,-200.0,0.00011345,2]
[406644904,1772025048034,-151.0,0.00011397,2]
[406644905,1772025048044,-151.0,0.00011397,2]
[406644906,1772025048053,-166.66,0.00011397,2]
[406644907,1772025048063,-357.6762453,0.00011404,2]
[406644908,1772025048072,-200.0,0.00011459,2]
[406644909,1772025048081,-389.16,0.00011492,2]
[406644910,1772025048091,-166.66,0.00011507,2]
[406644911,1772025048100,-156.53,0.00011507,2]
[406644912,1772025048109,-8233.38,0.00011507,2]
[406644913,1772025048120,-236.91,0.00011534,2]
[406644914,1772025048130,-2345.0,0.0001154,2]
[406644915,1772025048138,-12023.98672303,0.00011541,2]
[406644916,1772025048148,-200.0,0.00011573,2]
[406644917,1772025048157,-200.0,0.00011644,2]
[406644918,1772025048167,-150.0,0.00011648,2]
[406644919,1772025048176,-150.0,0.00011648,2]
[406644920,1772025048185,-150.0,0.00011648,2]
[406644921,1772025048194,-150.0,0.00011648,2]
[406644922,1772025048203,-150.0,0.00011648,2]
[406644923,1772025048213,-150.0,0.00011648,2]
[406644924,1772025048222,-150.0,0.00011648,2]
[406644925,1772025048231,-150.0,0.00011648,2]
[406644926,1772025048241,-150.0,0.00011648,2]
[406644927,1772025048251,-1340.0,0.00011648,2]
[406644928,1772025048263,-618.0,0.00011648,2]
[406644929,1772025048272,-3497.0,0.00011648,2]
[406644930,1772025048282,-1040.0,0.00011648,2]
[406644931,1772025048294,-150.0,0.00011648,2]
[406644932,1772025048303,-1277.0,0.00011648,2]
[406644933,1772025048313,-183.73,0.00011687,2]
[406644934,1772025048324,-200.0,0.00011689,2]
[406644935,1772025048333,-370.91026638,0.00011952,2]
[406644936,1772025048342,-2000.0,0.00012,2]
[406644937,1772025048351,-178.89551085,0.00012177,2]
[406644938,1772025048361,-200.0,0.00012192,2]
[406644939,1772025048370,-1000.0,0.0001229,2]
[406644940,1772025048379,-156.53,0.00012329,2]
[406644941,1772025048389,-486.55,0.00012466,2]
[406644942,1772025048399,-384.63394623,0.000125,2]
[406644943,1772025048408,-486.55,0.00012532,2]
[406644944,1772025048418,-486.55,0.00012597,2]
[406644945,1772025048427,-486.55,0.00012663,2]
[406644946,1772025048437,-486.55,0.00012729,2]
[406644947,1772025048446,-318.044735,0.00012734,2]
[406644948,1772025048455,-200.0,0.0001274,2]
[406644949,1772025048464,-486.55,0.00012794,2]
[406644950,1772025048474,-12023.98672303,0.00012813,2]
[406644951,1772025048484,-486.57775479,0.0001286,2]
[406644952,1772025048493,-151.0,0.00012887,2]
[406644953,1772025048503,-500.0,0.0001289,2]
[406644954,1772025048512,-500.0,0.0001289,2]
[406644955,1772025048522,-500.0,0.0001289,2]
[406644956,1772025048532,-500.0,0.0001289,2]
[406644957,1772025048542,-500.0,0.0001289,2]
[406644958,1772025048552,-500.0,0.0001289,2]
[406644959,1772025048561,-500.0,0.0001289,2]
[406644960,1772025048571,-699.99,0.0001289,2]
[406644961,1772025048580,-500.0,0.0001289,2]
[406644962,1772025048589,-500.0,0.0001289,2]
[406644963,1772025048599,-500.0,0.0001289,2]
[406644964,1772025048609,-500.0,0.0001289,2]
[406644965,1772025048618,-500.0,0.0001289,2]
[406644966,1772025048627,-500.0,0.0001289,2]
[406644967,1772025048637,-500.0,0.0001289,2]
[406644968,1772025048646,-500.0,0.0001289,2]
[406644969,1772025048656,-500.0,0.0001289,2]
[406644970,1772025048772,-500.0,0.0001289,2]
[406644971,1772025048783,-500.0,0.0001289,2]
[406644972,1772025048793,-500.0,0.0001289,2]
[406644973,1772025048803,-500.0,0.0001289,2]
[406644974,1772025048812,-500.0,0.0001289,2]
[406644975,1772025048822,-500.0,0.0001289,2]
[406644976,1772025048831,-500.0,0.0001289,2]
[406644977,1772025048841,-500.0,0.0001289,2]
[406644978,1772025048850,-504.04222443,0.0001289,2]
[406644979,1772025048860,-500.0,0.0001289,2]
[406644980,1772025048869,-851.56555211,0.0001289,2]
[406644981,1772025048878,-500.0,0.0001289,2]
[406644982,1772025048888,-500.0,0.0001289,2]
[406644983,1772025048897,-500.0,0.0001289,2]
[406644984,1772025048907,-500.0,0.0001289,2]
[406644985,1772025048916,-500.0,0.0001289,2]
[406644986,1772025048926,-500.0,0.0001289,2]
[406644987,1772025048935,-500.0,0.0001289,2]
[406644988,1772025048945,-500.0,0.0001289,2]
[406644989,1772025048955,-500.0,0.0001289,2]
[406644990,1772025048965,-500.0,0.0001289,2]
[406644991,1772025048975,-500.0,0.0001289,2]
[406644992,1772025048984,-500.0,0.0001289,2]
[406644993,1772025048994,-500.0,0.0001289,2]
[406644994,1772025049004,-500.0,0.0001289,2]
[406644995,1772025049013,-500.0,0.0001289,2]
[406644996,1772025049024,-500.0,0.0001289,2]
[406644997,1772025049033,-500.0,0.0001289,2]
[406644998,1772025049043,-500.0,0.0001289,2]
[406644999,1772025049052,-500.0,0.0001289,2]
[406645000,1772025049062,-500.0,0.0001289,2]
[406645001,1772025049072,-500.0,0.0001289,2]
[406645002,1772025049082,-500.0,0.0001289,2]
[406645003,1772025049091,-500.0,0.0001289,2]
[406645004,1772025049101,-500.0,0.0001289,2]
[406645005,1772025049111,-500.0,0.0001289,2]
[406645006,1772025049120,-500.0,0.0001289,2]
[406645007,1772025049130,-500.0,0.0001289,2]
[406645008,1772025049140,-500.0,0.0001289,2]
[406645009,1772025049150,-500.0,0.0001289,2]
[406645010,1772025049160,-323.78479431,0.0001299,2]
[406645011,1772025049169,-2000.0,0.00013,2]
[406645012,1772025049179,-2613.30423075,0.00013009,2]
[406645013,1772025049188,-812.400674,0.00013037,2]
[406645014,1772025049198,-812.400674,0.00013037,2]
[406645015,1772025049207,-812.400674,0.00013037,2]
[406645016,1772025049217,-812.400674,0.00013037,2]
[406645017,1772025049226,-621.78829552,0.00013046,2]
[406645018,1772025049236,-398.86540225,0.00013048,2]
[406645019,1772025049246,-173.91437885,0.00013069,2]
[406645020,1772025049258,-160.0,0.00013069,2]
[406645021,1772025049268,-352.039466,0.0001311,2]
[406645022,1772025049278,-259.44,0.00013285,2]
[406645023,1772025049287,-200.0,0.00013288,2]
[406645024,1772025049297,-445.25,0.00013306,30]
[406645025,1772025049306,-157.94,0.00013333,2]
[406645026,1772025049316,-570.0,0.00013349,2]
[406645027,1772025049326,-150.0,0.00013349,2]
[406645028,1772025049337,-150.0,0.00013349,2]
[406645029,1772025049347,-150.0,0.00013349,2]
[406645030,1772025049356,-150.0,0.00013349,2]
[406645031,1772025049365,-297.0,0.00013349,2]
[406645032,1772025049374,-445.25,0.0001338,30]
[406645033,1772025049383,-3240.0,0.00013425,2]
[406645034,1772025049392,-151.0,0.00013425,2]
[406645035,1772025049403,-151.0,0.00013425,2]
[406645036,1772025049413,-151.0,0.00013425,2]
[406645037,1772025049422,-155.790681,0.00013425,2]
[406645038,1772025049432,-151.0,0.00013425,2]
[406645039,1772025049441,-151.0,0.00013425,2]
[406645040,1772025049451,-180.308126,0.00013425,2]
[406645041,1772025049460,-180.308126,0.00013425,2]
[406645042,1772025049469,-180.308126,0.00013425,2]
[406645043,1772025049479,-180.308123,0.00013425,2]
[406645044,1772025049488,-1353.849617,0.00013425,2]
[406645045,1772025049497,-1353.849617,0.00013425,2]
[406645046,1772025049506,-1353.849617,0.00013425,2]
[406645047,1772025049519,-1353.849608,0.00013425,2]
[406645048,1772025049528,-445.25,0.00013455,30]
[406645049,1772025049544,-920.0,0.00013501,2]
[406645050,1772025049561,-1210.0,0.00013501,2]
[406645051,1772025049571,-2456.0,0.00013501,2]
[406645052,1772025049580,-413.0,0.00013501,2]
[406645053,1772025049589,-5405.0,0.00013501,2]
[406645054,1772025049599,-1000.0,0.00013519,2]
[406645055,1772025049608,-259.44,0.00013523,2]
[406645056,1772025049618,-445.25,0.0001353,30]
[406645057,1772025049627,-157.94,0.00013555,2]
[406645058,1772025049637,-14003.59222695,0.0001358,2]
[406645059,1772025049647,-445.25,0.00013605,30]
[406645060,1772025049657,-445.27294145,0.0001368,30]
[406645061,1772025049667,-500.0,0.00013698,2]
[406645062,1772025049676,-500.0,0.00013698,2]
[406645063,1772025049686,-500.0,0.00013698,2]
[406645064,1772025049695,-500.0,0.00013698,2]
[406645065,1772025049706,-500.0,0.00013698,2]
[406645066,1772025049715,-500.0,0.00013698,2]
[406645067,1772025049725,-500.0,0.00013698,2]
[406645068,1772025049736,-500.0,0.00013698,2]
[406645069,1772025049746,-500.0,0.00013698,2]
[406645070,1772025049755,-500.0,0.00013698,2]
[406645071,1772025049765,-500.0,0.00013698,2]
[406645072,1772025049775,-500.0,0.00013698,2]
[406645073,1772025049784,-151.20902264,0.00013698,2]
[406645074,1772025049794,-500.0,0.00013698,2]
[406645075,1772025049803,-500.0,0.00013698,2]
[406645076,1772025049813,-500.0,0.00013698,2]
[406645077,1772025049831,-500.0,0.00013698,2]
[406645078,1772025049852,-500.0,0.00013698,2]
[406645079,1772025049872,-500.0,0.00013698,2]
[406645080,1772025049882,-386.19326799,0.00013698,2]
[406645081,1772025049892,-500.0,0.00013698,2]
[406645082,1772025049902,-500.0,0.00013698,2]
[406645083,1772025049913,-500.0,0.00013698,2]
[406645084,1772025049923,-500.0,0.00013698,2]
[406645085,1772025049933,-500.0,0.00013698,2]
[406645086,1772025049942,-500.0,0.00013698,2]
[406645087,1772025049952,-500.0,0.00013698,2]
[406645088,1772025049961,-500.0,0.00013698,2]
[406645089,1772025049971,-500.0,0.00013698,2]
[406645090,1772025049981,-500.0,0.00013698,2]
[406645091,1772025049990,-500.0,0.00013698,2]
[406645092,1772025049999,-500.0,0.00013698,2]
[406645093,1772025050009,-500.0,0.00013698,2]
[406645094,1772025050019,-500.0,0.00013698,2]
[406645095,1772025050028,-500.0,0.00013698,2]
[406645096,1772025050038,-222.17486236,0.00013698,2]
[406645097,1772025050048,-500.0,0.00013698,2]
[406645098,1772025050057,-500.0,0.00013698,2]
[406645099,1772025050067,-500.0,0.00013698,2]
[406645100,1772025050077,-500.0,0.00013698,2]
[406645101,1772025050086,-500.0,0.00013698,2]
[406645102,1772025050097,-500.0,0.00013698,2]
[406645103,1772025050106,-500.0,0.00013698,2]
[406645104,1772025050116,-500.0,0.00013698,2]
[406645105,1772025050125,-500.0,0.00013698,2]
[406645106,1772025050135,-500.0,0.00013698,2]
[406645107,1772025050145,-500.0,0.00013698,2]
[406645108,1772025050155,-500.0,0.00013698,2]
[406645109,1772025050164,-500.0,0.00013698,2]
[406645110,1772025050174,-553.53,0.00013698,2]
[406645111,1772025050183,-553.53,0.00013698,2]
[406645112,1772025050194,-553.53,0.00013698,2]
[406645113,1772025050204,-553.53,0.00013698,2]
[406645114,1772025050215,-553.53,0.00013698,2]
[406645115,1772025050226,-553.53,0.00013698,2]
[406645116,1772025050237,-553.53,0.00013698,2]
[406645117,1772025050248,-553.53,0.00013698,2]
[406645118,1772025050262,-553.53,0.00013698,2]
[406645119,1772025050271,-553.53,0.00013698,2]
[406645120,1772025050281,-553.53,0.00013698,2]
[406645121,1772025050291,-553.53,0.00013698,2]
[406645122,1772025050301,-553.53,0.00013698,2]
[406645123,1772025050311,-553.53,0.00013698,2]
[406645124,1772025050322,-500.0,0.00013698,2]
[406645125,1772025050331,-500.0,0.00013698,2]
[406645126,1772025050342,-500.0,0.00013698,2]
[406645127,1772025050352,-500.0,0.00013698,2]
[406645128,1772025050361,-500.0,0.00013698,2]
[406645129,1772025050371,-500.0,0.00013698,2]
[406645130,1772025050379,-500.0,0.00013698,2]
[406645131,1772025050389,-500.0,0.00013698,2]
[406645132,1772025050398,-500.0,0.00013698,2]
[406645133,1772025050407,-500.0,0.00013698,2]
[406645134,1772025050417,-500.0,0.00013698,2]
[406645135,1772025050426,-500.0,0.00013698,2]
[406645136,1772025050436,-500.0,0.00013698,2]
[406645137,1772025050445,-500.0,0.00013698,2]
[406645138,1772025050454,-903.84,0.00013698,2]
[406645139,1772025050463,-903.84,0.00013698,2]
[406645140,1772025050472,-903.84,0.00013698,2]
[406645141,1772025050481,-903.84,0.00013698,2]
[406645142,1772025050490,-903.84,0.00013698,2]
[406645143,1772025050499,-903.84,0.00013698,2]
[406645144,1772025050508,-903.84,0.00013698,2]
[406645145,1772025050518,-903.84,0.00013698,2]
[406645146,1772025050527,-903.84,0.00013698,2]
[406645147,1772025050537,-903.84,0.00013698,2]
[406645148,1772025050546,-903.84,0.00013698,2]
[406645149,1772025050555,-903.84,0.00013698,2]
[406645150,1772025050564,-903.84,0.00013698,2]
[406645151,1772025050574,-500.0,0.00013698,2]
[406645152,1772025050584,-500.0,0.00013698,2]
[406645153,1772025050593,-500.0,0.00013698,2]
[406645154,1772025050702,-500.0,0.00013698,2]
[406645155,1772025050714,-500.0,0.00013698,2]
[406645156,1772025050726,-500.0,0.00013698,2]
[406645157,1772025050737,-500.0,0.00013698,2]
[406645158,1772025050749,-500.0,0.00013698,2]
[406645159,1772025050759,-500.0,0.00013698,2]
[406645160,1772025050771,-500.0,0.00013698,2]
[406645161,1772025050782,-500.0,0.00013698,2]
[406645162,1772025050794,-500.0,0.00013698,2]
[406645163,1772025050803,-500.0,0.00013698,2]
[406645164,1772025050812,-334.85315255,0.00013698,2]
[406645165,1772025050823,-500.0,0.00013698,2]
[406645166,1772025050833,-509.25704796,0.00013698,2]
[406645167,1772025050842,-412.8162274,0.00013698,2]
[406645168,1772025050853,-151.0,0.00013698,2]
[406645169,1772025050865,-151.0,0.00013698,2]
[406645170,1772025050876,-151.0,0.00013698,2]
[406645171,1772025050886,-151.0,0.00013698,2]
[406645172,1772025050898,-500.0,0.00013698,2]
[406645173,1772025050912,-500.0,0.00013698,2]
[406645174,1772025050923,-500.0,0.00013698,2]
[406645175,1772025050933,-500.0,0.00013698,2]
[406645176,1772025050946,-500.0,0.00013698,2]
[406645177,1772025050957,-278.70046284,0.00013698,2]
[406645178,1772025050968,-500.0,0.00013698,2]
[406645179,1772025050980,-500.0,0.00013698,2]
[406645180,1772025050989,-500.0,0.00013698,2]
[406645181,1772025051000,-500.0,0.00013698,2]
[406645182,1772025051012,-500.0,0.00013698,2]
[406645183,1772025051025,-500.0,0.00013698,2]
[406645184,1772025051034,-500.0,0.00013698,2]
[406645185,1772025051045,-500.0,0.00013698,2]
[406645186,1772025051058,-500.0,0.00013698,2]
[406645187,1772025051069,-500.0,0.00013698,2]
[406645188,1772025051080,-500.0,0.00013698,2]
[406645189,1772025051091,-500.0,0.00013698,2]
[406645190,1772025051103,-500.0,0.00013698,2]
[406645191,1772025051115,-500.0,0.00013698,2]
[406645192,1772025051125,-500.0,0.00013698,2]
[406645193,1772025051134,-500.0,0.00013698,2]
[406645194,1772025051143,-500.0,0.00013698,2]
[406645195,1772025051153,-500.0,0.00013698,2]
[406645196,1772025051162,-500.0,0.00013698,2]
[406645197,1772025051171,-500.0,0.00013698,2]
[406645198,1772025051180,-500.0,0.00013698,2]
[406645199,1772025051190,-500.0,0.00013698,2]
[406645200,1772025051199,-500.0,0.00013698,2]
[406645201,1772025051208,-500.0,0.00013698,2]
[406645202,1772025051217,-500.0,0.00013698,2]
[406645203,1772025051227,-500.0,0.00013698,2]
[406645204,1772025051236,-500.0,0.00013698,2]
[406645205,1772025051246,-500.0,0.00013698,2]
[406645206,1772025051259,-500.0,0.00013698,2]
[406645207,1772025051270,-500.0,0.00013698,2]
[406645208,1772025051279,-500.0,0.00013698,2]
[406645209,1772025051290,-500.0,0.00013698,2]
[406645210,1772025051300,-500.0,0.00013698,2]
[406645211,1772025051310,-500.0,0.00013698,2]
[406645212,1772025051320,-500.0,0.00013698,2]
[406645213,1772025051331,-500.0,0.00013698,2]
[406645214,1772025051341,-500.0,0.00013698,2]
[406645215,1772025051351,-508.21782231,0.00013698,2]
[406645216,1772025051360,-500.0,0.00013699,2]
[406645217,1772025051369,-826.34,0.00013699,2]
[406645218,1772025051379,-200.0,0.00013699,2]